Cogmind - Beta 16.1 @@@ ROGUE MODE // 2026.02.10 @ 18:18:06 Player: vorsii Result: Destroyed by G-47 Trooper with Particle Gun Performance ------------- Evolutions (0) 0 Regions Visited (1) 200 Robots Destroyed (16) 80 Value Destroyed (469) 469 Prototype IDs (0) 0 Alien Tech Used (0) 0 Bonus (0) 0 TOTAL SCORE: 749 Bonus ------- None Cogmind --------- Core Integrity 0/250 Matter 26/300 Energy 123/125 System Corruption 3% Temperature Cool (10) Movement Treading (320) Ox2 Location -10/Materials Parts ------- > --- POWER (1) -------- Light Ion Engine (fused) > --- PROPULSION (2) --- Light Treads > --- UTILITY (2) ------ High-capacity Storage Unit Terrain Scanner > --- WEAPON (2) ------- (None) > --- INVENTORY (20) --- Small Storage Unit Medium Matter Pod (63) Sensor Array Peak State ------------ > --- POWER ------------ Ion Engine > --- PROPULSION ------- Light Treads Light Treads > --- UTILITY ---------- Small Storage Unit Terrain Scanner > --- WEAPON ----------- Medium Laser Assault Rifle > --- INVENTORY -------- Light Ion Engine Medium Matter Pod Grenade Launcher [Rating: 7] Favorites ----------- Power Ion Engine Engine Ion Engine Propulsion Light Treads Treads Light Treads Utility Terrain Scanner Device Terrain Scanner Storage High-capacity Storage Unit Weapon Assault Rifle Energy Gun Medium Laser Ballistic Gun Assault Rifle Launcher Grenade Launcher Build | -11 -10 ------- Run | Yrd Mat Slots Evolved . | . . Power . | . . Propulsion . | . . Utility . | . . Weapon . | . . Parts Attached 10 | 6 4 Power 2 | 1 1 Engine 2 | 1 1 Core . | . . Reactor . | . . Propulsion 2 | 2 . Treads 2 | 2 . Leg . | . . Wheel . | . . Hover . | . . Flight . | . . Utility 3 | 1 2 Device 1 | . 1 Storage 2 | 1 1 Processor . | . . Hackware . | . . Protection . | . . Artifact . | . . Weapon 3 | 2 1 Energy Gun 1 | 1 . Energy Cannon . | . . Ballistic Gun 1 | 1 . Ballistic Cannon . | . . Launcher 1 | . 1 Special Weapon . | . . Impact Weapon . | . . Slashing Weapon . | . . Piercing Weapon . | . . Special Melee Weapon . | . . Unidentified Prototypes . | . . Parts Lost 4 | . 4 Power . | . . Propulsion 1 | . 1 Utility . | . . Weapon 3 | . 3 Highest Loss Streak 2 | . 2 To Critical Strikes . | . . Average Backups 2 | . 2 Power . | . . Propulsion . | . . Utility 1 | . 1 Weapon . | . . Tool/Special . | . . Unused Backups 2 | . 2 Power . | . . Propulsion . | . . Utility 2 | . 2 Weapon . | . . Tool/Special . | . . Average Slot Usage (%) 85 | . 85 Engine 14 | . 14 Treads 23 | . 23 Device 10 | . 10 Storage 14 | . 14 Energy Gun 6 | . 6 Ballistic Gun 8 | . 8 Launcher 7 | . 7 Peak Build Rating 7 | 6 7 Average Rating 5 | 4 6 On Entrance 3 | . 6 Avg Prop Armor Cover (%) . | . . Naked Turns . | . . Heaviest Build 51 | 14 51 Greatest Support 40 | 40 40 Greatest Overweight (x) 3 | 3 2 Average Overweight (x) . | . . Largest Inventory Capacity 20 | 8 20 Average Capacity 14 | 7 14 Most Carried 4 | 1 4 Average Carried 2 | . 2 Final Capacity 20 | 8 20 Final Carried 3 | 1 3 Class Distribution -------------------- 100% | Mutant Dominant Class ---------------- Mutant | -10/Materials Resources | -11 -10 ----------- Run | Yrd Mat Matter Collected 427 | 241 186 Remotely . | . . Salvage Created 311 | . 311 Parts 23 | . 23 Haulers Intercepted . | . . Recyclers Shooed 1 | . 1 Parts Field Recycled . | . . Retrieved Matter . | . . Parts Self-Destructed . | . . Prevented . | . . Parts Restored . | . . Kills | -11 -10 ------- Run | Yrd Mat Combat Hostiles Destroyed 10 | . 10 Guns 3 | . 3 AOE 6 | . 6 Classes Destroyed 4 | . 4 Builder 3 | . 3 Operator 1 | . 1 Watcher 2 | . 2 Grunt 10 | . 10 Best Kill Streak 5 | . 5 Combat Bots Only 3 | . 3 Max Kills in Single Turn 2 | . 2 Gunslinging . | . . Exploded 2 | . 2 Melee . | . . Uniques/NPCs Destroyed . | . . Combat | -11 -10 -------- Run | Yrd Mat Hostile Shots Fired 85 | . 85 Missed 27 | . 27 Hits 58 | . 58 Projectile 58 | . 58 Critical Strikes 2 | . 2 Damage Taken 883 | . 883 Core 253 | . 253 Absorbed by Shields . | . . Regen/Repaired (Parts) 74 | . 74 Core Remaining (%) 100 | 100 . Volleys Fired 45 | . 45 Largest 2 | . 2 Hottest 80 | . 80 Shots Fired 81 | . 81 Gun 59 | . 59 Cannon . | . . Launcher 22 | . 22 Special . | . . Kinetic 33 | . 33 Thermal 26 | . 26 Explosive 22 | . 22 Electromagnetic . | . . Robot Hit Streak 10 | . 10 Robot Miss Streak 5 | . 5 Penetration Max . | . . Secondary Targets . | . . Shots Hit Robots 50 | . 50 Core Hits 33 | . 33 Critical Kills . | . . Critical Parts Destroyed . | . . Critical Strikes 1 | . 1 Burn 1 | . 1 Melee Attacks . | . . Impact . | . . Slashing . | . . Piercing . | . . Sneak Attacks . | . . Combat Hostiles . | . . Follow-up Attacks . | . . Damage Inflicted 1307 | . 1307 Guns 431 | . 431 Cannons . | . . Explosions 876 | . 876 Melee . | . . Ramming . | . . Kinetic 233 | . 233 Thermal 198 | . 198 Explosive 876 | . 876 Electromagnetic . | . . Impact . | . . Slashing . | . . Piercing . | . . Highest Corruption 3 | . 3 Average Corruption 2 | . 2 Corruption Purged . | . . Corruption Blocked . | . . Effects 7 | . 7 Message Errors 2 | . 2 Matter Fused 2 | . 2 Energy Discharges 1 | . 1 Parts Fused 1 | . 1 Misfires 1 | . 1 Overload Shots . | . . Overflow Damage 33 | . 33 Projectiles . | . . Explosions 33 | . 33 Melee . | . . Knockbacks . | . . Impact . | . . Kinetic . | . . Secondary . | . . Self-Inflicted Damage 132 | . 132 Shots 5 | . 5 Rammed . | . . Targets Rammed . | . . Kicked . | . . Crushed . | . . Highest Temperature 274 | . 274 Average Temperature 96 | . 96 Received Heat Transfer 450 | . 450 Siege Activations . | . . Martial Activations . | . . Shielding Activations . | . . Robots Disrupted . | . . Combat Hostiles . | . . Robots Corrupted . | . . Combat Hostiles . | . . Parts Fried . | . . Impact Corruptions . | . . Robots Melted 1 | . 1 Combat Hostiles 1 | . 1 Parts Melted 1 | . 1 Heat Transferred 666 | . 666 Parts Sabotaged . | . . Parts Stolen . | . . Parts Stripped . | . . Power Chain Reactions . | . . Alert | -11 -10 ------- Run | Yrd Mat Maximum Alert Level 1 | . 1 Low Security (%) 80 | 100 79 Level 1 19 | . 20 Level 2 . | . . Level 3 . | . . Level 4 . | . . Level 5 . | . . High Security . | . . Max Security . | . . Peak Influence 229 | . 229 Initial . | . . Average 97 | . 102 Influence Increases 510 | . 510 Destroy 0b10 Robot/C 200 | . 200 Destroy 0b10 Robot/NC 30 | . 30 Destroy Leader 54 | . 54 Disable Machine 60 | . 60 Destroy Structure 136 | . 136 Lose Combat Pursuer 30 | . 30 Influence Decreases 324 | . 324 Time Decay 284 | . 284 Lost Part 40 | . 40 Squads Dispatched 3 | . 3 Investigation 1 | . 1 Extermination . | . . Reinforcement 2 | . 2 Assault . | . . Garrison . | . . Intercept . | . . Searches Triggered . | . . Construction Impeded . | . . Haulers Reinforced . | . . Active Scanning Responses . | . . Cargo Convoy Interrupts . | . . Stealth | -11 -10 --------- Run | Yrd Mat Distress Signals 1 | . 1 Communications Jammed . | . . Distress Signals . | . . Times Spotted 18 | . 18 Peak Tracking Total 4 | . 4 Tactical Retreats 2 | . 2 Traps | -11 -10 ------- Run | Yrd Mat Traps Triggered 2 | . 2 Indirectly . | . . Trap Hack Attempts . | . . Triggered . | . . Disarmed . | . . Reprogrammed . | . . Reused . | . . Traps Extracted . | . . Installed . | . . Triggered . | . . Machines | -11 -10 ---------- Run | Yrd Mat Machines Disabled 4 | . 4 Max in Single Turn 2 | . 2 Machines Repaired . | . . Machines Dismantled . | . . Machines Sabotaged . | . . Overloaded Fab Kills . | . . Hacking | -11 -10 --------- Run | Yrd Mat Machines Accessed 4 | . 4 Terminals 3 | . 3 Fabricators . | . . Repair Stations 1 | . 1 Recycling Units . | . . Scanalyzers . | . . Garrison Access . | . . Total Hacks 11 | . 11 Successful 6 | . 6 Failed 5 | . 5 Catastrophic . | . . Database Lockouts . | . . Manual . | . . Terminals 7 | . 7 Fabricators . | . . Repair Stations 4 | . 4 Recycling Units . | . . Scanalyzers . | . . Garrison Access . | . . Terminal Hacks 3 | . 3 Locate Traps 1 | . 1 Dispatch Records 1 | . 1 Hauler Manifests 1 | . 1 Fabricator Hacks . | . . Repair Station Hacks 3 | . 3 Scan Component 2 | . 2 Repair 1 | . 1 Recycling Unit Hacks . | . . Scanalyzer . | . . Garrison Access Hacks . | . . Unauthorized Hacks . | . . Terminals . | . . Fabricators . | . . Repair Stations . | . . Recycling Units . | . . Scanalyzers . | . . Garrison Access . | . . Data Cores Recovered . | . . Used . | . . Hacking Detections 3 | . 3 Full Trace Events 1 | . 1 Feedback Events . | . . Feedback Blocked . | . . Robot Schematics Acquired . | . . Robots Built . | . . Authchips . | . . Time . | . . Total Robot Build Rating . | . . Part Schematics Acquired . | . . Parts Built . | . . Authchips . | . . Time . | . . Total Part Build Rating . | . . Part Studies Acquired . | . . Parts Repaired 1 | . 1 Time 26 | . 26 Parts Recycled . | . . Recycled Matter . | . . Retrieved Matter . | . . Retrieved Components . | . . Parts Scanalyzed . | . . Part Schematics Acquired . | . . Parts Damaged . | . . Bothacking | -11 -10 ------------ Run | Yrd Mat Used RIF Installer . | . . Robots Hacked . | . . Non-combat . | . . Combat . | . . Robot Hacks Applied . | . . Relay Couplers Released . | . . Fabnet Peak Effective % . | . . Robots Rewired . | . . Allies Hacked . | . . Hacks Repelled . | . . Allies | -11 -10 -------- Run | Yrd Mat Total Allies . | . . Largest Group . | . . Highest-Rated Group . | . . Highest-Rated Ally . | . . Total Orders . | . . Ally Attacks . | . . Total Damage . | . . Kills . | . . Allies Corrupted . | . . Allies Melted . | . . Intel | -11 -10 ------- Run | Yrd Mat Active Infowar (turns) 858 | . 858 Terrain 858 | . 858 Robot Analysis Total . | . . Derelict Logs Recovered . | . . Drone Launches . | . . Drone Recoveries . | . . Exploration | -11 -10 ------------- Run | Yrd Mat Turns Passed 1183 | 58 1125 Spaces Moved 478 | 33 445 Core 5 | 5 . Treads 473 | 28 445 Legs . | . . Wheels . | . . Hover . | . . Flight . | . . Fastest Speed 50 | 50 160 Average Speed 206 | 149 210 Slowest Speed 320 | 200 320 Overloaded Moves . | . . Propulsion Burnouts . | . . Robots Hopped . | . . Potential Cave-ins . | . . Cave-ins Triggered . | . . Exploration Rate (%) 38 | 4 72 Regions Visited 1 Branch Regions . Pre-discovered Areas . | . . Known Exits Taken . | . . Unknown Exits Taken 1 | 1 . Scrap Searched . | . . Spaces Dug 8 | . 8 Terrain Destroyed 155 | . 155 Melee . | . . Projectile . | . . AOE 155 | . 155 Terrain Rammed . | . . Walls Destroyed . | . . Machines Disabled . | . . Actions | -11 -10 --------- Run | Yrd Mat Total 591 | 39 552 Wait 51 | . 51 Move 477 | 32 445 Hop . | . . Pick Up 5 | 1 4 Fast Attach 8 | 6 2 Attach 1 | . 1 Detach . | . . Swap 3 | . 3 Drop 1 | . 1 Fire 45 | . 45 Melee . | . . Ram . | . . Kick . | . . Crush . | . . Escape Stasis . | . . Rewire . | . . Trap . | . . Miscellaneous . | . . Route ------- -11/Scrapyard -10/Materials (discovered 3 exits: [*Mat x2] / [*Min]) History --------- Turn | Location | Event 21 | -11/Scrapyard | Discovered new exit (range 15) 59 | -11/Scrapyard | Entered Materials 141 | -10/Materials | Discovered new exit (range 10) 307 | -10/Materials | Build established: Mutant 435 | -10/Materials | Discovered new exit (range 16) 659 | -10/Materials | Derelicts attacked the area 750 | -10/Materials | Repaired Lgt. Treads 838 | -10/Materials | Core integrity fell below 50% 1027 | -10/Materials | Discovered new exit (range 8) 1163 | -10/Materials | Core integrity fell below 20% 1184 | -10/Materials | Destroyed by G-47 Trooper with Particle Gun Last Messages --------------- 00943_ The unstable cave ceiling collapses. 00959_ U-05 Engineer lays Concrete. 00960_ U-05 Engineer builds a Wall. 00964_ U-05 Engineer lays Concrete. 00968_ U-05 Engineer builds a Wall. 00973_ System corrupted: Matter fused (-9). 01012_ W-16 Scout destroyed. 01020_ System corrupted: FCS attempts to trigger Grenade Launcher. 01020_ System corrupted: Grenade Launcher misfires. 01023_ U-05 Engineer builds a Wall. 01026_ The unstable cave ceiling collapses. 01027_ Fusion Modulator explodes. 01027_ Acquired 4 matter. 01027_ EXIT=FOUND 01031_ U-05 Engineer lays Concrete. 01064_ GJ1A9QG3FCFO63 01126_ N5VIXW#IPM HPN>0 G4R1O>X0,I8ME 01141_ Grenade Launcher destroyed. 01182_ Critical hit (Burn: +37). Map ----- +----------------------------------------------------+ | #??#?????? # #??# # " " ^ # | | #??????????# #??# + "" " " # | | #????????# #??# # "" # [ # | | #????????# # #####+##??# # """ #""""" # | | ##???????### #?? ????# # #?##?# # | | ########### #?"?" ? ??# ########????# # # | | #???" ??? # ########?##?## + | | " #???" ??? # # ##??#?# # | | #??? ??? # # = #?????# # | | ###+##################### # ####### | | ##??????????????# # # " # | | #???????????????# # # "" + | | #??????????????## # # "" # | | #???????????????# + + """ ### | | #???????????????# # # "" #?# | | #???????????????# # # """ #?# ######## | | #????????#??????# # # """ #?# #??????? | | #???????????????# # # """ #?# ##?????? | | #???????????????# # # " #?# #??????? | | ####################+##### # #?# #??? ??? | | ### # ## ##### ########?# #??#???? | | #?# T # """ # #????????# ???????? | | #?# #?""""" / #????????? #??????? | | #?# #?""""" # #????????? ???????? | | #?# #??"""" # #####+####??????? ???????? | | #?# """ #??""" ?# #@ g ##?????? ???????? | | ### """ #?? ?# # #??????? ???????? | | # """ #? ?# # #??????? ???????? | | + ########??# # #???????????????? | | # """ #?????????# # #???????????????? | | #### """ #?????????# # #???????????????? | | ???# """ #?????????# # #???????????????? | | ???# #?????????# # #???????????????? | | ???########? ??????## # #???????????????? | | ????????????????????# ##+#######???????????????? | | ????????????????????# ??????#?????????????????? | | ???????????????????? ????????????????????????? | | ????????????????????? ?????????????????????????? | | ?????????????????????????????????????????????????? | | ?????????????????????????????????????????????????? | | ?????????????????????????????????????????????????? | | ?????????????????????????????????????????????????? | | ?????????????????????????????????????????????????? | | ?????????????????????????????????????????????????? | | ?????????????????????????????????????????????????? | | ?????????????????????????????????????????????????? | | ?????????????????????????????????????????????????? | | ?????????????????????????????????????????????????? | | ?????????????????????????????????????????????????? | | ?????????????????????????????????????????????????? | +----------------------------------------------------+ Best States ------------- Heat Dissipation 25 Energy Generation 10 Energy Capacity 250 Matter Stores 300 Matter Capacity 300 Sight Range 16 Terrain Scan Range 14 Terrain Scan Density 10 Evasion (%) 40 Recoil Reduction 2 Item Schematics ----------------- None Robot Schematics ------------------ None Fabricated ------------ Nothing Repaired ---------- Lgt. Treads | 47% | -10/Materials Studied --------- None Alien Tech Used ----------------- None Achievements -------------- None Challenges ------------ None Game ------ Seed AmuletTrackerJets Manual? 0 Play Time 00:12:04 Cumulative 27.4 hours Start 2026.02.10 @ 18:02:27 End 2026.02.10 @ 18:18:06 Sessions 1 Manual Loads 0 Difficulty Rogue Special Mode None Game No. 39 Rogue 39 Adventurer 0 Explorer 0 Win Type - Total 0 Types 0/0/0/0/0/0/0/0/0/0 Lore% 22 Gallery% 18 Achievement% 17 Wizard Run 0 Options --------- Layout 0 ASCII 0 Keyboard 0 Movement Numpad Keybinds 0 Fullscreen 1 Font 36/Smallcaps Map View 76x50 Zoom Use 0% Tactical HUD 1 Map Filters NONE Filters NONE Steam 1 RUN: 76dc8bea-4e98-4d0b-9392-e276c8968fe1